Workbook

Sheet ECRAN SUR TOURS
A1: 03119-NT1, vent suivant EN1991-1-4/NA.
A2: Nota: Ce formulaire est transmis à titre indicatif et n'est destiné qu' à faire un pré-dimensionnement sur la compatibilité des sections choisies (*)
H3: valeurs à renseigner
F5: A- ECRAN | K5: B- TOURS
F7: he | G7: 3 | H7: m | I7: hauteur de l'ecran | K7: type de tour
F8: b | G8: 2 | H8: m | I8: largeur de l'ecran | K8: ht min | L8: =zg+he+1.5 -> 6 | M8: m | N8: hauteur mini des tours/ hauteur de l'ecran
F9: Arefe | G9: =b*he -> 6 | H9: m2 | I9: surface de l'ecran | K9: ht | L9: 6 | M9: m | N9: hauteur des tours
K10: l min | L10: =b+1 -> 3 | M10: m | N10: entraxe mini entre tours
F11: zg | G11: 1.5 | H11: m | I11: distance entre le sol et base de l'ecran | K11: l | L11: 4 | M11: m | N11: entraxe entre les tours
F12: pe | G12: 150 | H12: kg | I12: poids de l'ecran | K12: em | L12: =INDEX(tours!A2:E4,tours!E7,4) -> 2.75 | M12: m | N12: empattement de l'embase
F13: ppal | G13: 100 | H13: kg | I13: poids des palans et cablerie | K13: ptt | L13: =INDEX(tours!A2:E4,tours!E7,2) -> 400 | M13: kgs | N13: poids moyen d'une tour complete
F14: pte | G14: =ppal+pe -> 250 | H14: kg | I14: poids total suspendu
F15: pre | G15: =G14/G8 -> 125 | H15: kg/ml | I15: poids reparti
K16: cr_max | L16: =INDEX(tours!A2:E4,tours!E7,3) -> 2441 | M16: kgf.m | N16: Moment max. applicable à une tour
F17: Fwe(z12) | G17: =Fwe -> 941.12928 | H17: kg | I17: action horizontale du vent sur écran (**) | K17: Fwt(z12) | L17: =fwt -> 127.1570227 | M17: kg | N17: action horizontale du vent sur 1 tour
K19: C-PONT
K20: section de pont
A21: Valeurs de reference du vent
A22: Vb,0 | B22: 24 | C22: m/s | D22: valeur de base de la vitesse de reférence du vent (moyenne sur 10min à 10m/sol) peut être ajusté en fonction du département d'exploitation (voir fig.1) | K22: lg pont | L22: =ROUNDUP(l_-0.5,0) -> 4 | M22: m | N22: (valeur pour calculs)
A23: Cseason | B23: 1 | D23: coefficient de saison d'exploitation (voir figure 3 en dessous) (1 par defaut) | K23: qmax | L23: =INDEX(lineaires!A6:X8,lineaires!D3+1,L22+2) -> 381 | M23: kg/ml | N23: limité par la section de pont
A24: Vb | B24: =vb_0*cseason -> 24 | C24: m/s | D24: Vitesse de reference du vent (vmoyen sur 10min, terrain cat2, p0.02) | K24: =IF(pre<qmax_struc,"section de pont compatible avec le poids de l'écran","Pont incompatible: diminuer poids ou la taille de l'écran OU passer à une section de pont supérieure OU reduire l'entraxe des tours") -> section de pont compatible avec le poids de l'écran
B25: =Vb*3.6 -> 86.4 | C25: km/h | K25: zep max | L25: =ht-1.5 -> 4.5 | M25: m | N25: hauteur maxi sous pont
A26: categorie terrain | D26: II par defaut | E26: =(INDEX(vent!A4:G8,vent!C10,3)) -> Rase campagne, avec ou non quelques obstacles isolés (arbres, bâtiments, etc.) séparés les uns des autres de plus de 40 fois leur hauteur
A27: extrait de EN 1991-1-4/NA
K28: ptp | L28: =INDEX(lineaires!A6:X8,lineaires!D3+1,24)*lg_pont -> 28 | M28: kg | N28: estimation du poids du pont
K29: Fwp(z12) | L29: =fwp -> 69.5389968 | M29: kg | N29: action horizontale du vent sur le pont
K30: STABILITE
K31: Mrp | L31: =L34*1.5 -> 5848.883193 | M31: kgf.m | N31: moment pondéré du vent appliqué à l'arche
K32: =IF(cr_max*2>Mrp, "TOURS COMPATIBLES AU VENT", "TOURS INCOMPATIBLES AU VENT, veuillez revoir la taille de l'ecran OU affiner le coefficient de saison OU augmenter la taille de tour OU passer a une arche à pattes en poutres à treillis") -> TOURS INCOMPATIBLES AU VENT, veuillez revoir la taille de l'ecran OU affiner le coefficient de saison OU augmenter la taille de tour OU passer a une arche à pattes en poutres à treillis
K33: ∑ptn | L33: =SUM(pte+ptt*2+L28) -> 1078 | M33: kg | N33: poids total de l'ensemble
K34: Mr | L34: =Fwe*(zg+(he/2))+(fwt*2*ht/2)+(fwp*zep_max) -> 3899.255462 | M34: kgf.m | N34: moment du vent appliqué à l'arche
K35: Lest mini | L35: =1.2*(((Mr/2)/em)-((∑ptn/2)/(em/2))) -> 380.3466462 | M35: kg | N35: valeur mini de chaque lest à prevoir et à placer coté face et lointain de chaque tour (aux extremités de pattes)
J37: Notes:
J38: les tours et ponts ne sont pas habillés d'une décoration occultante; Coef. CsCd=1
J39: (*) Ce formulaire est transmis à titre indicatif et n'est destiné qu' à faire un pré-dimensionnement sur la compatibilité des sections choisies.
J40: Il ne peut, en aucun cas, se substituer à une note de calculs officielle (à réaliser sur demande).
J41: (**)il est necessaire de prevoir les sandows dans les deux coins inferieurs de l'ecran relié à l'arche pour limiter la hauteur d'action du vent
J43: BE calculs: Cedia industrie/S.Chrisment
J44: Réf: | K44: 03119-NT1 ©2019

Sheet ECRAN SUR ARCHE
A1: 03119-NT1, vent suivant EN1991-1-4/NA.
A2: Nota: Ce formulaire est transmis à titre indicatif et n'est destiné qu' à faire un pré-dimensionnement sur la compatibilité des sections choisies (*)
H3: valeurs à renseigner
F5: A- ECRAN | K5: B- TOURS
F7: he | G7: 4 | H7: m | I7: hauteur de l'ecran | K7: type de tour
F8: b | G8: 6 | H8: m | I8: largeur de l'ecran | K8: ht min | L8: =zg+he+1.5 -> 7.5 | M8: m | N8: hauteur mini des tours/ hauteur de l'ecran
F9: Arefe | G9: =b*he -> 24 | H9: m2 | I9: surface de l'ecran | K9: ht | L9: 10 | M9: m | N9: hauteur des tours
F10: zg | G10: 2 | H10: m | I10: distance entre le sol et base de l'ecran | K10: l min | L10: =b+1 -> 7 | M10: m | N10: entraxe mini entre tours
F11: pe | G11: 750 | H11: kg | I11: poids de l'ecran | K11: l | L11: 7 | M11: m | N11: entraxe entre les tours
F12: ppal | G12: 250 | H12: kg | I12: poids des palans et cablerie | K12: em min | L12: =ht/4 -> 2.5 | M12: m | N12: empattement mini
F13: pte | G13: =ppal+pe -> 1000 | H13: kg | I13: poids total suspendu | K13: em av | L13: 6 | M13: m | N13: empattement de l'axe tour/ appui face avant
K14: em ar | L14: 6 | M14: m | N14: empattement de l'axe tour/ appui au lointain
K15: ptt | L15: =(INDEX(tours!A4:G5,tours!E8,7)*(2*ht+lg_pont+2*em_av+2*em_ar))+INDEX(tours!A4:G5,tours!E8,2) -> 437 | M15: kgs | N15: poids de l'arche seule
F16: Fwe(z12) | G16: =fwe_arche -> 3764.51712 | H16: kg | I16: action horizontale du vent sur écran | K16: cr_max | L16: N/A | M16: kgf.m | N16: non applicable car haubans
K17: Fwt(z12) | L17: =fwt_arche -> 173.847492 | M17: kg | N17: action horizontale du vent sur 1 tour
F18: pre | G18: =G13/G8 -> 166.6666667 | H18: kg/ml | I18: poids reparti
K19: C-PONT
K20: section de pont
A21: Valeurs de reference du vent
A22: Vb,0 | B22: 24 | C22: m/s | D22: valeur de base de la vitesse de reférence du vent (moyenne sur 10min à 10m/sol) peut être ajusté en fonction du département d'exploitation (voir fig.1) | K22: lg pont | L22: =ROUNDUP(l_-0.5,0) -> 7 | M22: m | N22: (valeur pour calculs)
A23: Cseason | B23: 1 | D23: coefficient de saison d'exploitation (voir figure 3 en dessous) (1 par defaut) | K23: qmax | L23: =INDEX(lineaires!A6:X8,lineaires!D3+1,L22+2) -> 177 | M23: kg/ml | N23: limité par la section de pont
A24: Vb | B24: =vb_0*cseason -> 24 | C24: m/s | D24: Vitesse de reference du vent (vmoyen sur 10min, terrain cat2, p0.02) | K24: =IF(pre<qmax_struc,"section de pont compatible avec le poids de l'écran","Pont incompatible: diminuer poids ou la taille de l'écran OU passer à une section de pont supérieure OU reduire l'entraxe des tours") -> section de pont compatible avec le poids de l'écran
B25: =Vb*3.6 -> 86.4 | C25: km/h | K25: zep max | L25: =ht-1.5 -> 8.5 | M25: m | N25: hauteur maxi sous pont
A26: categorie terrain | D26: II par defaut | E26: =(INDEX(vent!A4:G8,vent!C10,3)) -> Rase campagne, avec ou non quelques obstacles isolés (arbres, bâtiments, etc.) séparés les uns des autres de plus de 40 fois leur hauteur
A27: extrait de EN 1991-1-4/NA
K28: ptp | L28: =INDEX(lineaires!A6:X8,lineaires!D3+1,24)*lg_pont -> 49 | M28: kg | N28: estimation du poids du pont
K29: Fwp(z12) | L29: =fwp_arche -> 69.5389968 | M29: kg | N29: action horizontale du vent sur le pont
K30: STABILITE
K31: ∑ptn | L31: =SUM(pte+ptt+L28) -> 1486 | M31: kg | N31: poids total de l'ensemble
K32: Mr | L32: =fwe_arche*(zg+(he/2))+(fwt_arche*2*ht/2)+(fwp_arche*zep_max) -> 17387.62487 | M32: kgf.m | N32: moment du vent appliqué à l'arche
K33: Lest mini face (LF) | L33: =1.2*(((Mr/2)/(em_av+em_ar))-(∑ptn/2*em_ar)/(em_ar+em_av)) -> 423.5812436 | M33: kg | N33: valeur mini de chaque lest à placer aux extremités des pattes avant
K34: Lest mini lointain (LL) | L34: =1.2*(((Mr/2)/(em_av+em_ar))-(∑ptn/2*em_av)/(em_ar+em_av)) -> 423.5812436 | M34: kg | N34: valeur mini de chaque lest à placer aux extremités des pattes arrieres
K35: Fh | L35: ='ECRAN SUR ARCHE'!Mr/'ECRAN SUR ARCHE'!ht/2 -> 869.3812436 | M35: kgf | N35: effort horizontal du vent en haut de chaque tour
K36: ang h | L36: =DEGREES(ATAN(MIN(L13:L14)/'ECRAN SUR ARCHE'!ht)) -> 30.96375653 | M36: ° | N36: angle min des haubans/vertical
K37: Fc | L37: =IF(Fh/SIN(RADIANS(ang_h))>2850,"CRITIQUE",Fh/SIN(RADIANS(ang_h))) -> 1689.773403 | M37: kgf | N37: CMU mini, dû au vent par cable d'haubannage
L38: =IFERROR(L37*5,"augmenter em") -> 8448.867017 | M38: kgf | N38: effort de resistance à la rupture mini par cable
J41: ='ECRAN SUR TOURS'!J37 -> Notes:
J42: ='ECRAN SUR TOURS'!J38 -> les tours et ponts ne sont pas habillés d'une décoration occultante; Coef. CsCd=1
J43: ='ECRAN SUR TOURS'!J39 -> (*) Ce formulaire est transmis à titre indicatif et n'est destiné qu' à faire un pré-dimensionnement sur la compatibilité des sections choisies.
J44: ='ECRAN SUR TOURS'!J40 -> Il ne peut, en aucun cas, se substituer à une note de calculs officielle (à réaliser sur demande).
J45: ='ECRAN SUR TOURS'!J41 -> (**)il est necessaire de prevoir les sandows dans les deux coins inferieurs de l'ecran relié à l'arche pour limiter la hauteur d'action du vent
J47: ='ECRAN SUR TOURS'!J43 -> BE calculs: Cedia industrie/S.Chrisment
J48: ='ECRAN SUR TOURS'!J44 -> Réf: | K48: ='ECRAN SUR TOURS'!$K$44 -> 03119-NT1 ©2019

Sheet tours (hidden)
B1: poids propre kg | C1: cr_max kgf.m | D1: empattement maxi (m) | E1: cf(6-12m) | F1: Aref m2/ml | G1: sw kg/ml
A2: TL290 | B2: 250 | C2: =ROUNDUP(2600*0.239*2,0) -> 1243 | D2: 2.2 | E2: 1.33 | F2: 0.15 | G2: 7
A3: TL400 | B3: 400 | C3: =ROUNDUP(3600*0.339*2,0) -> 2441 | D3: 2.75 | E3: 1.52 | F3: 0.16 | G3: 8
A4: SC300 | B4: 80 | C4: =C2 -> 1243 | E4: =E2 -> 1.33 | F4: =F2 -> 0.15 | G4: 7
A5: SC390 | B5: 110 | C5: =C3 -> 2441 | E5: =E3 -> 1.52 | F5: =F3 -> 0.16 | G5: 8
D7: index tours | E7: 2
D8: index tour arche | E8: 1
A10: 1 | B10: =A10+1 -> 2 | C10: =B10+1 -> 3 | D10: 4 | E10: 5 | F10: 6 | G10: 7
A12: pour sc300 et sc390, préciser le poids des tetes de tetes de tour (hors lineaires)+chariot

Sheet lineaires (hidden)
A3: taux de fleche | B3: 1/300 | D3: 1 | E3: cellule liée index ligne
B6: portée(m) | C6: 1 | D6: =C6+1 -> 2 | E6: 3 | F6: 4 | G6: 5 | H6: 6 | I6: 7 | J6: 8 | K6: 9 | L6: 10 | M6: 11 | N6: 12 | O6: 13 | P6: 14 | Q6: 15 | R6: 16 | S6: 17 | T6: 18 | U6: 19 | V6: 20 | X6: sw kg/ml | Y6: cf(6-12m) | Z6: Aref m2/ml
A7: SC300 | B7: qmax (kg/ml) | C7: 1543 | D7: 768 | E7: 510 | F7: 381 | G7: 303 | H7: 252 | I7: 177 | J7: 117 | K7: 80 | L7: 56 | M7: 41 | N7: 30 | O7: 22 | P7: 16 | Q7: 12 | R7: 9 | S7: 6 | T7: 4 | U7: 3 | V7: 1 | X7: 7 | Y7: 1.33 | Z7: 0.15
A8: SC390 | B8: qmax (kg/ml) | C8: 2441 | D8: 1217 | E8: 809 | F8: 604 | G8: 482 | H8: 369 | I8: 269 | J8: 204 | K8: 160 | L8: 118 | M8: 87 | N8: 65 | O8: 49 | P8: 38 | Q8: 29 | R8: 23 | S8: 18 | T8: 14 | U8: 11 | V8: 8 | X8: 8 | Y8: 1.52 | Z8: 0.16
A11: 1 | B11: =A11+1 -> 2 | C11: =B11+1 -> 3 | D11: 4 | E11: 5 | F11: 6 | G11: 7 | H11: 8 | I11: 9 | J11: 10 | K11: 11 | L11: 12 | M11: 13 | N11: 14 | O11: 15 | P11: 16 | Q11: 17 | R11: 18 | S11: 19 | T11: 20 | U11: 21 | V11: 22 | W11: 23 | X11: 24 | Y11: =X11+1 -> 25 | Z11: =Y11+1 -> 26

Sheet vent (hidden)
A1: 4-3 categories de terrain
A2: 1 | B2: =1+A2 -> 2 | C2: =1+B2 -> 3 | D2: 4 | E2: 5 | F2: 6 | G2: 7 | H2: 8 | I2: 9 | J2: 10 | K2: 11 | L2: 12
A3: N° | B3: index | C3: details categories | D3: zo(m) | E3: zmin(m) | F3: kR | G3: kl | H3: crz(12m) | I3: cez(12m) | M3: suivant en1991-1-4/na/a1
A4: 0 | B4: 1 | C4: Mer ou zone côtière exposée aux vents de mer ; lacs et plans d’eau parcourus par le vent sur une distance d’au moins 5 km | D4: 0.005 | E4: 1 | F4: 0.162 | G4: 1 | H4: 1.26 | I4: 3.02
A5: II | B5: 2 | C5: Rase campagne, avec ou non quelques obstacles isolés (arbres, bâtiments, etc.) séparés les uns des autres de plus de 40 fois leur hauteur | D5: 0.05 | E5: 2 | F5: 0.19 | G5: 1 | H5: 1.04 | I5: 2.47
A6: IIIa | B6: 3 | C6: Campagne avec des haies ; vignobles ; bocage ; habitat dispersé | D6: 0.2 | E6: 5 | F6: 0.209 | G6: 0.97 | H6: 0.86 | I6: 1.95
A7: IIIb | B7: 4 | C7: Zones urbanisées ou industrielles ; bocage dense ; vergers | D7: 0.5 | E7: 9 | F7: 0.223 | G7: 0.92 | H7: 0.71 | I7: 1.52
A8: IV | B8: 5 | C8: Zones urbaines dont au moins 15 % de la surface sont recouverts de bâtiments dont la hauteur moyenne est supérieure à 15 m ; forêts | D8: 1 | E8: 15 | F8: 0.234 | G8: 0.85 | H8: 0.63 | I8: 1.28
B10: index cellule liée | C10: 2
H12: arche
A14: qb | B14: =(1.225/2)*Vb^2 -> 352.8 | C14: Pa (N/m2) | D14: pression dynamique moyenne de référence | H14: qb arche | I14: =(1.225/2)*vb_arche^2 -> 352.8
A15: vb | B15: =Vb -> 24 | C15: m/s | H15: vb arche | I15: ='ECRAN SUR ARCHE'!Vb -> 24 | J15: m/s
A17: crz | B17: =INDEX(A4:H8,C10,8) -> 1.04 | C17: coefficient de rugosité | I17: idem tour
A18: vmz | B18: =B17*B15 -> 24.96 | C18: Vent moyen à hauteur z (m/s) | H18: vmz arche | I18: =B17*I15 -> 24.96 | J18: m/s
A19: cez | B19: =INDEX(A4:I8,C10,9) -> 2.47 | C19: coefficient d'exposition | I19: idem tour
A20: qp(z) | B20: =B19*qb -> 871.416 | C20: Pa (N/m2) | D20: pression dynamique de pointe | H20: qpz arche | I20: =B19*qb_arche -> 871.416 | J20: Pa (N/m2)
C22: cat | D22: =INDEX(A4:L9,C10,1) -> II
C23: cscd | D23: 1 | E23: forfaitaire | F23: <15m
C24: TOURS | H24: tour arche
C25: cft | D25: =INDEX(tours!A2:H3,tours!E7,5) -> 1.52 | H25: cft arche | I25: =INDEX(tours!A4:H5,tours!E8,5) -> 1.33
C26: Areft | D26: =INDEX(tours!A2:H3,tours!E7,6)*ht -> 0.96 | E26: m2 | H26: Areft arche | I26: =INDEX(tours!A4:G5,tours!E8,6)*'ECRAN SUR ARCHE'!ht -> 1.5 | J26: m2
C27: Fwt | D27: =cscd*cft*qp_z*Areft -> 1271.570227 | E27: N/tour | H27: Fwt arche | I27: =cscd*cft_arche*qpz_arche*Areft_arche -> 1738.47492 | J27: N/tour
D28: =D27/10 -> 127.1570227 | E28: daN/tour | I28: =I27/10 -> 173.847492 | J28: daN/tour
C29: ECRAN | H29: ecran arche
C30: cfe | D30: 1.8 | F30: 7.4.3 | I30: idem
C31: Arefe | D31: =Arefe -> 6 | E31: m2 | H31: Arefe arche | I31: ='ECRAN SUR ARCHE'!Arefe -> 24 | J31: m2
C32: Fwe | D32: =cscd*cfe*qp_z*Arefe -> 9411.2928 | E32: N | H32: fwe arche | I32: =cscd*cfe*qpz_arche*I31 -> 37645.1712 | J32: N
D33: =D32/10 -> 941.12928 | E33: daN | I33: =I32/10 -> 3764.51712 | J33: daN
C34: PONT | H34: pont arche
C35: cfp | D35: =INDEX(lineaires!A7:Z8,lineaires!D3,25) -> 1.33 | I35: idem
C36: Arefp | D36: =INDEX(lineaires!A7:Z8,lineaires!D3,26)*lg_pont -> 0.6 | E36: m2 | I36: idem
C37: Fwp | D37: =cscd*cfp*qp_z*Arefp -> 695.389968 | E37: N/tour | H37: fwp arche | I37: =cscd*cfp*qpz_arche*Arefp -> 695.389968 | J37: N/tour
D38: =D37/10 -> 69.5389968 | E38: daN/tour | I38: =I37/10 -> 69.5389968 | J38: daN/tour
